lending/lending_fUSD_20250316
["ID","MTS","AMOUNT","RATE_DAILY","PERIOD"]
[356247496,1742136662115,-9783.08,0.00047499,120]
[356247497,1742136662128,-9783.08,0.00047499,120]
[356247498,1742136662140,-9783.08,0.00047499,120]
[356247499,1742136662153,-9783.08,0.00047499,120]
[356247500,1742136662165,-9783.08,0.00047499,120]
[356247501,1742136662177,-9783.08,0.00047499,120]
[356247502,1742136662190,-9783.08,0.00047499,120]
[356247503,1742136662201,-9783.08,0.00047499,120]
[356247504,1742136662213,-7335.54908685,0.00047499,120]
[356247505,1742136662237,-374.55,0.00047499,120]
[356247506,1742136662252,-2072.98091315,0.00047499,120]
[356247507,1742136662265,-569.82908685,0.00047499,120]
[356247508,1742136662278,-1111.99999958,0.00047499,120]
[356247509,1742136662300,-262.6,0.00047499,120]
[356247510,1742136662314,-1543.05198182,0.00047499,120]
[356247528,1742137383429,152.0,0.0001801,2]
[356247558,1742137832182,-250.0,0.00019,2]
[356247559,1742137832191,-156.66,0.00026849,2]
[356247560,1742137832200,-163.33020747,0.0002958,2]
[356247561,1742137832209,-1937.032,0.0002968,23]
[356247562,1742137832218,-150.814,0.0002968,23]
[356247563,1742137832227,-500.0,0.0002968,2]
[356247564,1742137832237,-297.55,0.0002968,2]
[356247565,1742137832246,-948.7537,0.0002968,2]
[356247566,1742137832255,-665.26272246,0.0002978,2]
[356247567,1742137832267,-5041.24577754,0.0002978,2]
[356247568,1742137832275,-202.11421252,0.000299,5]
[356247569,1742137832284,-202.1142123,0.00033082,6]
[356247570,1742137832293,-154.9,0.000335,31]
[356247571,1742137832302,-450.81676131,0.00035372,2]
[356247572,1742137832310,-202.1142123,0.00036264,7]
[356247573,1742137832319,-154.9,0.000373,31]
[356247574,1742137832328,-154.9,0.000373,31]
[356247575,1742137832337,-500.0,0.00037452,2]
[356247576,1742137832344,-202.1142123,0.00039445,8]
[356247577,1742137832353,-154.9,0.000411,31]
[356247578,1742137832362,-154.9,0.000411,31]
[356247580,1742137832371,-757.0454786,0.00042,120]
[356247582,1742137832381,-617.47,0.00042405,2]
[356247584,1742137832390,-202.1142123,0.00042627,9]
[356247585,1742137832399,-151.0,0.00043549,2]
[356247586,1742137832408,-3934.0,0.00043549,2]
[356247587,1742137832417,-1114.0,0.00043549,2]
[356247588,1742137832426,-23900.0,0.00044345,2]
[356247589,1742137832435,-150.08,0.00044391,120]
[356247590,1742137832443,-617.47,0.00044669,2]
[356247591,1742137832452,-164.96,0.00044778,2]
[356247592,1742137832461,-155.03,0.00044788,2]
[356247593,1742137832469,-154.9,0.000449,39]
[356247594,1742137832478,-154.9,0.000449,39]
[356247595,1742137832487,-155.03,0.00044905,2]
[356247596,1742137832496,-900.0,0.00045,90]
[356247597,1742137832505,-155.03,0.00045023,2]
[356247598,1742137832514,-382.02,0.0004508,120]
[356247599,1742137832523,-155.03,0.00045141,2]
[356247600,1742137832533,-2000.0,0.00045172,120]
[356247601,1742137832543,-155.03,0.00045259,2]
[356247602,1742137832552,-4180.1569825,0.0004526,2]
[356247603,1742137832561,-163.33020746,0.00045277,2]
[356247604,1742137832571,-155.03,0.00045377,2]
[356247605,1742137832581,-155.03,0.00045495,2]
[356247606,1742137832590,-155.03,0.00045613,2]
[356247607,1742137832599,-155.03,0.0004573,2]
[356247608,1742137832609,-202.1142123,0.00045809,10]
[356247609,1742137832619,-172.44,0.00045834,2]
[356247610,1742137832628,-155.03,0.00045848,2]
[356247611,1742137832638,-155.03,0.00045966,2]
[356247613,1742137832647,-10077.15948667,0.00046,120]
[356247615,1742137832656,-750.0,0.00046,120]
[356247616,1742137832666,-513.7320764,0.00046073,4]
[356247618,1742137832675,-155.03,0.00046084,2]
[356247620,1742137832684,-471.82291752,0.00046172,2]
[356247622,1742137832693,-155.03,0.00046202,2]
[356247624,1742137832703,-250.0,0.00046254,2]
[356247625,1742137832711,-155.03,0.0004632,2]
[356247627,1742137832720,-155.03,0.00046438,2]
[356247629,1742137832730,-1600.52316108,0.00046465,2]
[356247630,1742137832739,-1162.7386,0.00046475,2]
[356247631,1742137832748,-313.6676,0.00046475,2]
[356247632,1742137832757,-2052.4324,0.00046475,2]
[356247633,1742137832766,-2997.9331,0.00046475,2]
[356247634,1742137832775,-223.2344,0.00046475,2]
[356247636,1742137832784,-151.0,0.000465,14]
[356247638,1742137832794,-1029.5527962,0.00046549,10]
[356247640,1742137832803,-155.03,0.00046555,2]
[356247643,1742137832813,-239.08336842,0.00046573,120]
[356247645,1742137832822,-151.0,0.00046575,14]
[356247647,1742137832831,-500.0,0.00046575,120]
[356247649,1742137832840,-500.0,0.00046575,120]
[356247651,1742137832850,-500.0,0.00046575,120]
[356247653,1742137832861,-500.0,0.00046575,120]
[356247655,1742137832871,-500.0,0.00046575,120]
[356247657,1742137832880,-500.0,0.00046575,120]
[356247659,1742137832890,-500.0,0.00046575,120]
[356247661,1742137832900,-500.0,0.00046575,120]
[356247663,1742137832909,-500.0,0.00046575,120]
[356247665,1742137832918,-500.0,0.00046575,120]
[356247667,1742137832927,-500.0,0.00046575,120]
[356247669,1742137832937,-500.0,0.00046575,120]
[356247670,1742137832947,-500.0,0.00046575,120]
[356247672,1742137832959,-254.50406574,0.00046575,120]
[356247674,1742137832968,-155.03,0.00046673,2]
[356247676,1742137832978,-155.03,0.00046791,2]
[356247678,1742137832987,-155.03,0.00046909,2]
[356247680,1742137832998,-526.6423382,0.00046933,2]
[356247683,1742137833013,-90.8276618,0.00046933,2]
[356247685,1742137833023,-150.999999,0.0004695,120]
[356247687,1742137833035,-1496.5152592,0.00047,120]
[356247689,1742137833045,-155.03,0.00047027,2]
[356247691,1742137833055,-164.90676282,0.00047262,2]
[356247693,1742137833065,-500.0,0.000473,2]
[356247695,1742137833074,-221.3565332,0.000473,2]
[356247699,1742137833103,-709.96987906,0.000473,2]
[356247701,1742137833116,-307.31279,0.000473,2]
[356247713,1742137837874,-408.8857221,0.00046425,2]
[356247715,1742137837887,-469.36529581,0.00046425,2]
[356247719,1742137837912,-121.74898209,0.00046425,2]
[356247720,1742137837922,-664.45378713,0.000473,2]
[356247722,1742137838042,-125.49951061,0.000473,2]
[356247723,1742137838051,-1000.0,0.000473,2]
[356247724,1742137838061,-905.0,0.00047352,30]
[356247725,1742137838071,-1097.51305803,0.00047389,2]
[356247726,1742137838181,-1402.48694197,0.00047389,2]
[356247727,1742137838191,-4068.48740642,0.00047389,2]
[356247733,1742137840021,-497.84519358,0.00047389,2]
[356247734,1742137840032,-2678.522,0.0004739,2]
[356247735,1742137840042,-1000.0,0.0004739,2]
[356247736,1742137840052,-1027.40336202,0.0004739,19]
[356247737,1742137840062,-2730.65055017,0.00047399,120]
[356247738,1742137840144,-2269.34944983,0.00047399,120]
[356247739,1742137840154,-1485.2,0.00047399,120]
[356247740,1742137840164,-500.0,0.00047399,120]
[356247741,1742137840174,-296.8,0.00047399,120]
[356247742,1742137840183,-603.98,0.00047399,2]
[356247743,1742137840193,-500.0,0.00047399,120]
[356247744,1742137840203,-499.98,0.00047399,2]
[356247745,1742137840212,-175.0,0.00047399,7]
[356247746,1742137840221,-36691.26290102,0.000474,120]
[356247747,1742137840237,-257.55369459,0.000474,120]
[356247748,1742137840248,-265.1286,0.000474,120]
[356247749,1742137840328,-466.867531,0.000474,120]
[356247750,1742137840383,-789.86276498,0.000474,120]
[356247751,1742137840395,-285.37500001,0.000474,120]
[356247773,1742137843066,-1000.0,0.000474,120]
[356247774,1742137843078,-31406.01327694,0.000474,120]
[356247921,1742137844617,-768.09376526,0.000473,2]
[356247923,1742137844629,-1731.90623474,0.000473,2]
[356247925,1742137844639,-17725.93623146,0.000474,120]
[356247927,1742137844648,-2287.10476169,0.000474,14]
[356247936,1742137844728,-3512.89523831,0.000474,14]
[356247938,1742137844738,-171.0,0.000474,120]
[356247940,1742137844747,-500.0,0.00047473,10]
[356247942,1742137844757,-150.0,0.00047479,30]
[356247944,1742137844767,-150.0,0.00047479,30]
[356247946,1742137844777,-9.27903669,0.00047479,30]
[356248050,1742137845924,-1057.50924714,0.00046529,10]
[356248052,1742137845934,-140.72096331,0.00047479,30]
[356248054,1742137845944,-500.0,0.00047488,120]
[356248056,1742137845958,-500.0,0.00047488,120]
[356248058,1742137845968,-500.0,0.00047488,120]
[356248060,1742137845977,-500.0,0.00047488,120]
[356248062,1742137845987,-500.0,0.00047488,120]
[356248064,1742137845997,-500.0,0.00047488,120]
[356248066,1742137846007,-500.0,0.00047488,120]
[356248068,1742137846016,-618.10255954,0.00047488,120]
[356248070,1742137846027,-500.0,0.00047488,120]
[356248072,1742137846036,-500.0,0.00047488,120]
[356248074,1742137846045,-500.0,0.00047488,120]
[356248076,1742137846055,-500.0,0.00047488,120]
[356248078,1742137846064,-500.0,0.00047488,120]
[356248080,1742137846073,-400.0,0.00047488,120]
[356248082,1742137846083,-500.0,0.00047488,120]
[356248084,1742137846092,-1485.2,0.00047488,120]
[356248086,1742137846101,-1199.65,0.00047488,120]
[356248088,1742137846111,-500.0,0.00047488,120]
[356248090,1742137846121,-1368.68,0.00047488,120]
[356248092,1742137846131,-603.98,0.00047488,2]
[356248094,1742137846140,-500.0,0.00047488,120]
[356248096,1742137846149,-25742.72945925,0.00047489,3]
[356248098,1742137846162,-25047.40822425,0.00047489,3]
[356248100,1742137846174,-8679.6,0.00047489,3]
[356248102,1742137846185,-327.983998,0.00047489,3]
[356248105,1742137846196,-832.4585784,0.00047489,3]
[356248107,1742137846207,-411.6767198,0.00047489,3]
[356248109,1742137846218,-830.12969053,0.00047489,3]
[356248111,1742137846230,-11187.69777687,0.00047489,3]
[356248113,1742137846239,-367.1294612,0.00047489,120]
[356248309,1742138708787,1550369.27041112,0.0001,2]
[356248310,1742138708817,1703579.94113675,0.0001,2]
[356248311,1742138708849,11000.0,0.0001,2]
[356248312,1742138708883,100000.0,0.0001,2]
[356248313,1742138708918,100000.0,0.0001,2]
[356248314,1742138708951,100000.0,0.0001,2]
[356248315,1742138708987,100000.0,0.0001,2]
[356248316,1742138709022,100000.0,0.0001,2]
[356248317,1742138709058,17000.0,0.0001,2]
[356248318,1742138709090,100000.0,0.0001,2]
[356248319,1742138710809,-163.02660544,0.0001,2]
[356248320,1742138720376,1012.77263419,9e-05,2]
[356248321,1742138736870,1974.91270008,8e-05,2]
[356248328,1742138799343,-213.02660544,9.999e-05,2]
[356248329,1742138822629,-250.0,9.999e-05,2]
[356248331,1742138828363,1053.37075794,9.14e-05,2]
[356248389,1742138880889,-150.0,9.999e-05,2]
[356248390,1742138922098,-193.96770859,9.999e-05,2]
[356248391,1742138922130,-641777.32461671,0.0001,2]
[356248392,1742138922158,-920188.86801608,0.0001,2]
[356248393,1742138923931,934.13172556,0.0001,2]
[356248411,1742139032165,-675.3,0.00021,2]
[356248415,1742139032199,-3377.56770054,0.00021,2]
[356248416,1742139032209,-500.0,0.0002125,2]
[356248417,1742139032219,-150.0,0.000215,2]
[356248418,1742139032229,-956.174,0.00022,2]
[356248419,1742139032238,-500.0,0.00022028,2]
[356248420,1742139032247,-150.0,0.0002274,2]
[356248421,1742139032256,-549.44778095,0.000229,3]
[356248422,1742139032265,-3.57800752,0.00023,15]
[356248423,1742139032277,-344.51932527,0.00023,15]
[356248424,1742139032289,-1510.21795861,0.00023,15]
[356248425,1742139032301,-150.0,0.000231,2]
[356248426,1742139032311,-500.0,0.000231,2]
[356248427,1742139032320,-10208.38829139,0.000248,2]
[356248428,1742139032332,-36764.33299084,0.000248,2]
[356248429,1742139032393,-210822.55367777,0.000248,2]
[356248430,1742139032403,-256197.262439,0.000249,2]
[356248431,1742139032412,-549.44778071,0.00025555,4]
[356248432,1742139032422,-154.66,0.00026849,2]
[356248433,1742139032432,-549.44778071,0.0002821,5]
[356248434,1742139032441,-1168.94610204,0.0003,15]
[356248435,1742139032450,-32345.85898685,0.0003014,30]
[356248436,1742139032460,-549.44778071,0.00030866,5]
[356248437,1742139032469,-549.44778071,0.00033521,6]
[356248438,1742139032478,-4259.38131751,0.00035,30]
[356248439,1742139032488,-549.44778071,0.00036176,7]
[356248440,1742139032497,-239.11956355,0.0003759,7]
[356248441,1742139032507,-500.0,0.00038356,15]
[356248442,1742139032516,-500.0,0.00038356,15]
[356248443,1742139032527,-500.0,0.00038356,15]
[356248444,1742139032537,-500.0,0.00038356,15]
[356248445,1742139032546,-500.0,0.00038356,15]
[356248446,1742139032555,-500.0,0.00038356,15]
[356248447,1742139032565,-500.0,0.00038356,15]
[356248448,1742139032575,-500.0,0.00038356,15]
[356248449,1742139032584,-500.0,0.00038356,15]
[356248450,1742139032602,-500.0,0.00038356,15]
[356248451,1742139032613,-512.67179168,0.00038356,15]
[356248452,1742139032624,-450.0,0.00038356,15]
[356248453,1742139032634,-549.44778071,0.00038831,8]
[356248454,1742139032643,-549.44778071,0.00041486,9]
[356248455,1742139032653,-200.0,0.00042801,2]
[356248456,1742139032663,-524.84,0.00043644,2]
[356248457,1742139032673,-172.44,0.00043723,2]
[356248458,1742139032683,-549.44778071,0.00044141,9]
[356248459,1742139032693,-2000.0,0.00044226,120]
[356248460,1742139032703,-2000.0,0.00044597,8]
[356248461,1742139032714,-384.6348208,0.000449,30]
[356248462,1742139032724,-285.9,0.00045,120]
[356248463,1742139032734,-410.11816,0.00045,10]
[356248465,1742139032743,-2000.0,0.00045198,8]
[356248467,1742139032753,-150.08,0.00045723,120]
[356248469,1742139032763,-2000.0,0.00045798,8]
[356248471,1742139032772,-199.18,0.00045849,120]
[356248474,1742139032782,-23900.0,0.00045881,2]
[356248477,1742139032792,-524.84,0.00045908,2]
[356248479,1742139032802,-2800.0,0.00046,20]
[356248481,1742139032811,-32060.998,0.00046,30]
[356248484,1742139032821,-240.0,0.00046,10]
[356248487,1742139032830,-385.2990573,0.00046073,4]
[356248491,1742139032840,-250.0,0.00046288,2]
[356248493,1742139032849,-2000.0,0.00046398,8]
[356248497,1742139032860,-5000.0,0.000464,120]
[356248499,1742139032869,-151.0,0.00046497,2]
[356248501,1742139032879,-151.0,0.00046497,2]
[356248502,1742139032889,-3787.854,0.00046497,2]
[356248503,1742139032898,-1361.43,0.00046575,120]
[356248504,1742139032907,-1361.43,0.00046575,120]
[356248505,1742139032918,-500.0,0.00046575,120]
[356248506,1742139032924,-500.0,0.00046575,120]
[356248507,1742139032933,-553.65,0.00046575,2]
[356248508,1742139032943,-553.65,0.00046575,2]
[356248509,1742139032952,-500.0,0.00046575,120]
[356248510,1742139032963,-500.0,0.00046575,120]
[356248511,1742139032972,-500.0,0.00046575,120]
[356248512,1742139032982,-500.0,0.00046575,120]
[356248513,1742139032991,-500.0,0.00046575,120]
[356248514,1742139033001,-549.44778071,0.00046797,10]
[356248515,1742139033011,-958.90980458,0.0004688,19]
[356248516,1742139033021,-1000.0,0.0004688,2]
[356248517,1742139033031,-1361.43,0.00046888,120]
[356248518,1742139033041,-475.73,0.00046888,120]
[356248519,1742139033051,-553.65,0.00046888,2]
[356248520,1742139033062,-500.0,0.00046888,120]
[356248521,1742139033071,-223.2344,0.0004689,2]
[356248522,1742139033081,-3805.5192,0.0004689,2]
[356248523,1742139033091,-1579.63621602,0.0004689,2]
[356248524,1742139033101,-5000.0,0.00046899,120]
[356248525,1742139033110,-1549.625,0.00046899,78]
[356248526,1742139033120,-150.814,0.00046899,78]
[356248527,1742139033130,-30000.0,0.000469,120]
[356248528,1742139033140,-10000.0,0.000469,2]
[356248529,1742139033150,-10014.4543203,0.000469,2]
[356248530,1742139033160,-88888.0,0.000469,120]
[356248531,1742139033170,-1361.43,0.00046979,120]
[356248532,1742139033179,-553.65,0.00046979,2]
[356248533,1742139033190,-500.0,0.00046979,120]
[356248534,1742139033200,-155.110986,0.0004698,14]
[356248535,1742139033210,-1361.43,0.0004698,120]
[356248536,1742139033221,-553.65,0.0004698,2]
[356248537,1742139033231,-500.0,0.0004698,120]
[356248538,1742139033241,-150.0,0.00046986,30]
[356248539,1742139033251,-150.0,0.00046986,30]
[356248540,1742139033262,-150.0,0.00046986,30]
[356248541,1742139033271,-2730.0,0.00046986,120]
[356248542,1742139033282,-500.0,0.00046989,120]
[356248543,1742139033294,-500.0,0.00046989,120]
[356248544,1742139033308,-500.0,0.00046989,120]
[356248545,1742139033318,-151.0,0.00046989,14]
[356248546,1742139033328,-151.0,0.00046989,14]
[356248547,1742139033339,-199.04151,0.00046989,14]
[356248548,1742139033349,-199.04151,0.00046989,14]
[356248549,1742139033360,-500.0,0.00046989,120]
[356248550,1742139033371,-500.0,0.00046989,120]
[356248551,1742139033382,-151.0,0.00046989,14]
[356248552,1742139033393,-1361.43,0.00046989,120]
[356248553,1742139033403,-500.0,0.00046989,120]
[356248554,1742139033412,-153.54857819,0.00046989,120]
[356248555,1742139033422,-1149.66,0.00046989,120]
[356248556,1742139033432,-1149.66,0.00046989,120]
[356248557,1742139033442,-1311.65,0.00046989,120]
[356248558,1742139033452,-1311.65,0.00046989,120]
[356248559,1742139033462,-553.65,0.00046989,2]
[356248560,1742139033472,-500.0,0.00046989,120]
[356248561,1742139033482,-500.0,0.00046998,120]
[356248562,1742139033492,-1149.66,0.00046998,120]
[356248563,1742139033502,-1311.65,0.00046998,120]
[356248564,1742139033512,-2000.0,0.00046998,8]
[356248565,1742139033521,-3253.96692016,0.00046999,120]
[356248566,1742139033532,-1183.0,0.00046999,2]
[356248567,1742139033542,-500.0,0.00046999,120]
[356248568,1742139033552,-500.0,0.00046999,120]
[356248569,1742139033561,-500.0,0.00046999,120]
[356248570,1742139033571,-500.0,0.00046999,120]
[356248571,1742139033582,-500.0,0.00046999,120]
[356248572,1742139033592,-500.0,0.00046999,120]
[356248573,1742139033601,-500.0,0.00046999,120]
[356248574,1742139033611,-500.0,0.00046999,60]
[356248575,1742139033620,-500.0,0.00046999,60]
[356248576,1742139033630,-500.0,0.00046999,60]
[356248577,1742139033639,-500.0,0.00046999,60]
[356248578,1742139033649,-500.0,0.00046999,60]
[356248579,1742139033659,-500.0,0.00046999,60]
[356248580,1742139033669,-500.0,0.00046999,60]
[356248581,1742139033679,-500.0,0.00046999,60]
[356248582,1742139033690,-500.0,0.00046999,60]
[356248583,1742139033700,-500.0,0.00046999,60]
[356248584,1742139033711,-500.0,0.00046999,60]
[356248585,1742139033721,-501.60508516,0.00046999,60]
[356248586,1742139033731,-500.0,0.00046999,120]
[356248587,1742139033740,-4080.02793018,0.00046999,2]
[356248588,1742139033750,-510.63309436,0.00046999,120]
[356248589,1742139033760,-500.0,0.00046999,120]
[356248590,1742139033770,-500.0,0.00046999,120]
[356248591,1742139033779,-500.0,0.00046999,120]
[356248592,1742139033789,-500.0,0.00046999,120]
[356248593,1742139033798,-500.0,0.00046999,120]
[356248594,1742139033808,-500.0,0.00046999,120]
[356248595,1742139033819,-500.0,0.00046999,120]
[356248596,1742139033828,-500.0,0.00046999,120]
[356248597,1742139033838,-500.0,0.00046999,120]
[356248598,1742139033848,-500.0,0.00046999,120]
[356248599,1742139033858,-500.0,0.00046999,7]
[356248600,1742139033868,-500.0,0.00046999,2]
[356248601,1742139033878,-500.0,0.00046999,2]
[356248602,1742139033888,-500.0,0.00046999,2]
[356248603,1742139033898,-500.0,0.00046999,120]
[356248604,1742139033908,-500.0,0.00046999,120]
[356248605,1742139033918,-635.32,0.00046999,120]
[356248606,1742139033929,-500.0,0.00046999,120]
[356248607,1742139033940,-500.0,0.00046999,120]
[356248608,1742139033950,-500.0,0.00046999,120]
[356248609,1742139033961,-439.93390713,0.00046999,120]
[356248610,1742139033971,-638.5230372,0.00046999,120]
[356248611,1742139033982,-566.16,0.00046999,120]
[356248612,1742139033992,-500.0,0.00046999,120]
[356248613,1742139034002,-500.0,0.00046999,120]
[356248614,1742139034013,-500.0,0.00046999,120]
[356248615,1742139034022,-500.0,0.00046999,120]
[356248616,1742139034033,-500.0,0.00046999,120]
[356248617,1742139034042,-500.0,0.00046999,120]
[356248618,1742139034053,-500.0,0.00046999,120]
[356248619,1742139034063,-364.36405522,0.00046999,120]
[356248620,1742139034073,-452.10856984,0.00046999,120]
[356248621,1742139034083,-500.0,0.00046999,120]
[356248622,1742139034093,-500.0,0.00046999,120]
[356248623,1742139034103,-500.0,0.00046999,120]
[356248624,1742139034117,-500.0,0.00046999,120]
[356248625,1742139034127,-500.0,0.00046999,120]
[356248626,1742139034137,-613.17276534,0.00046999,120]
[356248627,1742139034147,-500.0,0.00046999,120]
[356248628,1742139034157,-500.0,0.00046999,120]
[356248629,1742139034167,-500.0,0.00046999,120]
[356248630,1742139034177,-500.0,0.00046999,120]
[356248631,1742139034189,-500.0,0.00046999,120]
[356248632,1742139034198,-500.0,0.00046999,120]
[356248633,1742139034212,-500.0,0.00046999,120]
[356248634,1742139034223,-455.85662008,0.00046999,120]
[356248635,1742139034233,-500.0,0.00046999,120]
[356248636,1742139034243,-500.0,0.00046999,120]
[356248637,1742139034253,-500.0,0.00046999,120]
[356248638,1742139034263,-500.0,0.00046999,120]
[356248639,1742139034273,-500.0,0.00046999,120]
[356248640,1742139034283,-500.0,0.00046999,120]
[356248641,1742139034293,-248.75995259,0.00046999,120]
[356248642,1742139034307,-500.0,0.00046999,120]
[356248643,1742139034316,-500.0,0.00046999,120]
[356248644,1742139034326,-591.92,0.00046999,120]
[356248645,1742139034338,-500.0,0.00046999,120]
[356248646,1742139034348,-500.0,0.00046999,120]
[356248647,1742139034358,-411.66363461,0.00046999,120]
[356248648,1742139034369,-500.0,0.00046999,120]
[356248649,1742139034381,-500.0,0.00046999,120]
[356248650,1742139034391,-500.0,0.00046999,120]
[356248651,1742139034401,-500.0,0.00046999,120]
[356248652,1742139034411,-500.0,0.00046999,120]
[356248653,1742139034421,-500.0,0.00046999,120]
[356248654,1742139034431,-500.0,0.00046999,120]
[356248655,1742139034443,-500.0,0.00046999,120]
[356248656,1742139034453,-500.0,0.00046999,120]
[356248657,1742139034463,-482.40823957,0.00046999,120]
[356248658,1742139034474,-500.0,0.00046999,120]
[356248659,1742139034484,-500.0,0.00046999,120]
[356248660,1742139034494,-500.0,0.00046999,120]
[356248661,1742139034503,-500.0,0.00046999,120]
[356248662,1742139034514,-151.0,0.00046999,14]
[356248663,1742139034523,-196.34065886,0.00046999,120]
[356248664,1742139034533,-506.74919541,0.00046999,120]
[356248665,1742139034544,-162.53,0.00046999,120]
[356248666,1742139034553,-500.0,0.00046999,120]
[356248667,1742139034563,-500.0,0.00046999,120]
[356248668,1742139034573,-500.0,0.00046999,120]
[356248669,1742139034583,-500.0,0.00046999,120]
[356248670,1742139034593,-500.5908,0.00046999,120]
[356248671,1742139034602,-151.0,0.00046999,14]
[356248672,1742139034611,-708.41,0.00046999,120]
[356248673,1742139034621,-708.41,0.00046999,120]
[356248674,1742139034630,-708.41,0.00046999,120]
[356248675,1742139034644,-708.41,0.00046999,120]
[356248676,1742139034654,-708.41,0.00046999,120]
[356248677,1742139034664,-708.41,0.00046999,120]
[356248678,1742139034674,-708.41,0.00046999,120]
[356248679,1742139034685,-708.41,0.00046999,120]
[356248680,1742139034695,-708.41,0.00046999,120]
[356248681,1742139034705,-708.41,0.00046999,120]
[356248682,1742139034715,-708.41,0.00046999,120]
[356248683,1742139034725,-708.41,0.00046999,120]
[356248684,1742139034734,-708.41,0.00046999,120]
[356248685,1742139034744,-708.41,0.00046999,120]
[356248686,1742139034754,-708.41,0.00046999,120]
[356248687,1742139034764,-708.41,0.00046999,120]
[356248688,1742139034774,-708.41,0.00046999,120]
[356248689,1742139034784,-708.41,0.00046999,120]
[356248690,1742139034794,-708.41,0.00046999,120]
[356248691,1742139034804,-708.41,0.00046999,120]
[356248692,1742139034813,-708.41,0.00046999,120]
[356248693,1742139034823,-708.41,0.00046999,120]
[356248694,1742139034833,-151.0,0.00046999,14]
[356248695,1742139034843,-708.41,0.00046999,120]
[356248696,1742139034853,-708.61545261,0.00046999,120]
[356248697,1742139034862,-500.0,0.00046999,120]
[356248698,1742139034872,-500.0,0.00046999,120]
[356248699,1742139034881,-500.0,0.00046999,120]
[356248700,1742139034891,-394.88,0.00046999,120]
[356248701,1742139034901,-500.0,0.00046999,120]
[356248702,1742139034910,-483.26802506,0.00046999,120]
[356248703,1742139034920,-429.62793332,0.00046999,120]
[356248704,1742139034930,-438.6970463,0.00046999,120]
[356248705,1742139034941,-432.28177917,0.00046999,120]
[356248706,1742139034950,-410.49923865,0.00046999,31]
[356248707,1742139034962,-500.0,0.00046999,120]
[356248708,1742139034971,-500.0,0.00046999,120]
[356248709,1742139034982,-500.0,0.00046999,120]
[356248710,1742139034991,-500.0,0.00046999,120]
[356248711,1742139035001,-500.0,0.00046999,120]
[356248712,1742139035011,-500.0,0.00046999,120]
[356248713,1742139035021,-500.0,0.00046999,120]
[356248714,1742139035032,-500.0,0.00046999,120]
[356248715,1742139035042,-435.05271621,0.00046999,7]
[356248716,1742139035052,-500.0,0.00046999,120]
[356248717,1742139035067,-500.0,0.00046999,120]
[356248718,1742139035077,-500.0,0.00046999,120]
[356248719,1742139035088,-500.0,0.00046999,120]
[356248720,1742139035099,-500.0,0.00046999,120]
[356248721,1742139035110,-500.0,0.00046999,120]
[356248722,1742139035120,-500.0,0.00046999,120]
[356248723,1742139035131,-151.0,0.00046999,14]
[356248724,1742139035141,-362.90084726,0.00046999,120]
[356248725,1742139035152,-500.0,0.00046999,120]
[356248726,1742139035162,-500.0,0.00046999,120]
[356248727,1742139035173,-500.0,0.00046999,120]
[356248728,1742139035183,-500.0,0.00046999,120]